[Event "Titled Tuesday Blitz August 10 2021"]
[White "Gupta, Abhijeet"]
[Black "Sevian, Samuel"]
[WhiteFideId "5010608"]
[BlackFideId "2040506"]
[WhiteElo "2549"]
[BlackElo "2981"]
[Result "1/2-1/2"]
[Round "06"]
[TimeControl "180+1"]
[Date "2021.08.10"]
[WhiteClock "0:00:08"]
[BlackClock "0:00:06"]

1. d4 {[%clk 0:03:00]}  Nf6 {[%clk 0:02:57]} 2. c4 {[%clk 0:03:00]}  e5 {[%clk 0:02:56]} 3. dxe5 {[%clk 0:02:59]}  Ng4 {[%clk 0:02:54]} 4. Bf4 {[%clk 0:02:59]}  g5 {[%clk 0:02:54]} 5. Bd2 {[%clk 0:02:55]}  Nxe5 {[%clk 0:02:54]} 6. Bc3 {[%clk 0:02:53]}  Bg7 {[%clk 0:02:54]} 7. e3 {[%clk 0:02:52]}  O-O {[%clk 0:02:52]} 8. Nd2 {[%clk 0:02:49]}  Nbc6 {[%clk 0:02:50]} 9. Be2 {[%clk 0:02:45]}  d6 {[%clk 0:02:50]} 10. Rc1 {[%clk 0:02:40]}  Re8 {[%clk 0:02:50]} 11. Ngf3 {[%clk 0:02:40]}  a5 {[%clk 0:02:49]} 12. O-O {[%clk 0:02:40]}  h6 {[%clk 0:02:45]} 13. b3 {[%clk 0:02:38]}  Bf5 {[%clk 0:02:43]} 14. Nd4 {[%clk 0:02:37]}  Bg6 {[%clk 0:02:43]} 15. Nxc6 {[%clk 0:02:30]}  Nxc6 {[%clk 0:02:38]} 16. Bf3 {[%clk 0:02:16]}  Bxc3 {[%clk 0:02:09]} 17. Rxc3 {[%clk 0:02:17]}  Qf6 {[%clk 0:02:10]} 18. Rc1 {[%clk 0:02:02]}  Nb4 {[%clk 0:02:04]} 19. Bxb7 {[%clk 0:01:22]}  Ra7 {[%clk 0:01:56]} 20. Bf3 {[%clk 0:01:22]}  Nxa2 {[%clk 0:01:51]} 21. Ra1 {[%clk 0:01:22]}  Nc3 {[%clk 0:01:37]} 22. Qc1 {[%clk 0:01:23]}  h5 {[%clk 0:01:37]} 23. h3 {[%clk 0:01:23]}  Kg7 {[%clk 0:01:24]} 24. b4 {[%clk 0:01:22]}  a4 {[%clk 0:01:11]} 25. Ra3 {[%clk 0:01:21]}  Ne4 {[%clk 0:01:00]} 26. Nxe4 {[%clk 0:00:53]}  Bxe4 {[%clk 0:01:01]} 27. Bxh5 {[%clk 0:00:54]}  Qh6 {[%clk 0:00:57]} 28. Qc3+ {[%clk 0:00:51]}  f6 {[%clk 0:00:47]} 29. Bxe8 {[%clk 0:00:50]}  Ra8 {[%clk 0:00:45]} 30. Bxa4 {[%clk 0:00:47]}  g4 {[%clk 0:00:40]} 31. Qd4 {[%clk 0:00:36]}  Bxg2 {[%clk 0:00:29]} 32. Qxg4+ {[%clk 0:00:25]}  Kh8 {[%clk 0:00:29]} 33. Qxg2 {[%clk 0:00:23]}  Rg8 {[%clk 0:00:29]} 34. Bc6 {[%clk 0:00:23]}  Rxg2+ {[%clk 0:00:27]} 35. Bxg2 {[%clk 0:00:24]}  Qh4 {[%clk 0:00:27]} 36. Ra8+ {[%clk 0:00:24]}  Kg7 {[%clk 0:00:27]} 37. Rc1 {[%clk 0:00:25]}  f5 {[%clk 0:00:26]} 38. Ra7 {[%clk 0:00:24]}  f4 {[%clk 0:00:26]} 39. Rxc7+ {[%clk 0:00:24]}  Kh6 {[%clk 0:00:27]} 40. exf4 {[%clk 0:00:24]}  Qxf4 {[%clk 0:00:27]} 41. Rd1 {[%clk 0:00:24]}  d5 {[%clk 0:00:27]} 42. cxd5 {[%clk 0:00:23]}  Qxc7 {[%clk 0:00:27]} 43. d6 {[%clk 0:00:23]}  Qc2 {[%clk 0:00:27]} 44. Rd4 {[%clk 0:00:22]}  Qc1+ {[%clk 0:00:22]} 45. Kh2 {[%clk 0:00:22]}  Qb2 {[%clk 0:00:20]} 46. Rh4+ {[%clk 0:00:21]}  Kg7 {[%clk 0:00:19]} 47. Rg4+ {[%clk 0:00:20]}  Kf6 {[%clk 0:00:19]} 48. d7 {[%clk 0:00:18]}  Ke7 {[%clk 0:00:19]} 49. Re4+ {[%clk 0:00:15]}  Kxd7 {[%clk 0:00:19]} 50. Kg3 {[%clk 0:00:16]}  Qg7+ {[%clk 0:00:19]} 51. Rg4 {[%clk 0:00:15]}  Qe5+ {[%clk 0:00:19]} 52. Rf4 {[%clk 0:00:13]}  Qg5+ {[%clk 0:00:19]} 53. Rg4 {[%clk 0:00:12]}  Qe5+ {[%clk 0:00:20]} 54. f4 {[%clk 0:00:13]}  Qc3+ {[%clk 0:00:20]} 55. Bf3 {[%clk 0:00:12]}  Qxb4 {[%clk 0:00:20]} 56. Rg5 {[%clk 0:00:11]}  Qe1+ {[%clk 0:00:20]} 57. Kg4 {[%clk 0:00:12]}  Qg1+ {[%clk 0:00:20]} 58. Kf5 {[%clk 0:00:11]}  Qc5+ {[%clk 0:00:20]} 59. Kg4 {[%clk 0:00:12]}  Qg1+ {[%clk 0:00:20]} 60. Kh5 {[%clk 0:00:12]}  Qf1 {[%clk 0:00:20]} 61. Bg4+ {[%clk 0:00:12]}  Ke7 {[%clk 0:00:20]} 62. f5 {[%clk 0:00:11]}  Qf4 {[%clk 0:00:18]} 63. h4 {[%clk 0:00:11]}  Kf7 {[%clk 0:00:17]} 64. Rg6 {[%clk 0:00:11]}  Qb8 {[%clk 0:00:17]} 65. Kg5 {[%clk 0:00:08]}  Qd8+ {[%clk 0:00:16]} 66. Kh5 {[%clk 0:00:08]}  Qh8+ {[%clk 0:00:17]} 67. Kg5 {[%clk 0:00:09]}  Qd8+ {[%clk 0:00:17]} 68. Kh5 {[%clk 0:00:09]}  Qh8+ {[%clk 0:00:17]} 69. Rh6 {[%clk 0:00:10]}  Qe8 {[%clk 0:00:17]} 70. Re6 {[%clk 0:00:10]}  Qh8+ {[%clk 0:00:17]} 71. Kg5 {[%clk 0:00:10]}  Qg7+ {[%clk 0:00:17]} 72. Rg6 {[%clk 0:00:09]}  Qe5 {[%clk 0:00:17]} 73. Bh5 {[%clk 0:00:08]}  Qe3+ {[%clk 0:00:16]} 74. Kg4 {[%clk 0:00:08]}  Qe2+ {[%clk 0:00:16]} 75. Kg5 {[%clk 0:00:09]}  Qe3+ {[%clk 0:00:16]} 76. Kg4 {[%clk 0:00:09]}  Qe2+ {[%clk 0:00:16]} 77. Kg5 {[%clk 0:00:10]}  Qd2+ {[%clk 0:00:17]} 78. Kg4 {[%clk 0:00:10]}  Qd4+ {[%clk 0:00:17]} 79. Kg5 {[%clk 0:00:09]}  Qd2+ {[%clk 0:00:12]} 80. Kg4 {[%clk 0:00:10]}  Qd1+ {[%clk 0:00:12]} 81. Kg5 {[%clk 0:00:10]}  Qc1+ {[%clk 0:00:13]} 82. Kg4 {[%clk 0:00:10]}  Kf8 {[%clk 0:00:10]} 83. Re6 {[%clk 0:00:10]}  Qg1+ {[%clk 0:00:06]} 84. Kf4 {[%clk 0:00:09]}  Qc1+ {[%clk 0:00:06]} 85. Kg4 {[%clk 0:00:09]}  Qg1+ {[%clk 0:00:06]} 86. Kf4 {[%clk 0:00:09]}  Qc1+ {[%clk 0:00:06]} 87. Kg4 {[%clk 0:00:08]} 1/2-1/2


[Site "https://www.chess.com"]

[Event "Titled Tuesday Blitz August 10 2021"]
[White "Khusnutdinov, Rustam"]
[Black "Assaubayeva, Bibisara"]
[WhiteFideId "13701703"]
[BlackFideId "13708694"]
[WhiteElo "2571"]
[BlackElo "2232"]
[Result "1-0"]
[Round "06"]
[TimeControl "180+1"]
[Date "2021.08.10"]
[WhiteClock "0:00:22"]
[BlackClock "0:00:03"]

1. d4 {[%clk 0:03:00]}  Nf6 {[%clk 0:02:59]} 2. c4 {[%clk 0:03:00]}  g6 {[%clk 0:02:59]} 3. Nc3 {[%clk 0:03:00]}  Bg7 {[%clk 0:03:00]} 4. e4 {[%clk 0:03:00]}  d6 {[%clk 0:03:00]} 5. Nge2 {[%clk 0:03:01]}  O-O {[%clk 0:03:01]} 6. Ng3 {[%clk 0:03:01]}  c5 {[%clk 0:02:54]} 7. d5 {[%clk 0:03:01]}  e6 {[%clk 0:02:54]} 8. Be2 {[%clk 0:03:01]}  exd5 {[%clk 0:02:54]} 9. cxd5 {[%clk 0:03:02]}  a6 {[%clk 0:02:54]} 10. a4 {[%clk 0:03:02]}  Nbd7 {[%clk 0:02:46]} 11. O-O {[%clk 0:03:01]}  Qc7 {[%clk 0:02:46]} 12. Bg5 {[%clk 0:02:59]}  h6 {[%clk 0:02:41]} 13. Be3 {[%clk 0:02:50]}  c4 {[%clk 0:02:19]} 14. Qd2 {[%clk 0:02:47]}  Kh7 {[%clk 0:02:19]} 15. Rac1 {[%clk 0:02:24]}  Rb8 {[%clk 0:02:10]} 16. Ba7 {[%clk 0:02:23]}  Ra8 {[%clk 0:02:08]} 17. Bd4 {[%clk 0:02:23]}  Rb8 {[%clk 0:02:04]} 18. h3 {[%clk 0:02:01]}  b5 {[%clk 0:02:01]} 19. axb5 {[%clk 0:02:02]}  axb5 {[%clk 0:02:01]} 20. b4 {[%clk 0:02:03]}  Re8 {[%clk 0:01:37]} 21. Ra1 {[%clk 0:02:01]}  Ng8 {[%clk 0:01:19]} 22. Ra7 {[%clk 0:01:56]}  Qd8 {[%clk 0:01:17]} 23. Rfa1 {[%clk 0:01:50]}  Bxd4 {[%clk 0:01:11]} 24. Qxd4 {[%clk 0:01:51]}  Qf6 {[%clk 0:01:04]} 25. Qxf6 {[%clk 0:01:47]}  Ngxf6 {[%clk 0:01:05]} 26. R1a5 {[%clk 0:01:46]}  h5 {[%clk 0:01:01]} 27. f3 {[%clk 0:01:46]}  h4 {[%clk 0:00:58]} 28. Nf1 {[%clk 0:01:46]}  Ne5 {[%clk 0:00:37]} 29. Nxb5 {[%clk 0:01:18]}  Rb6 {[%clk 0:00:32]} 30. Ne3 {[%clk 0:00:41]}  Bd7 {[%clk 0:00:24]} 31. Bxc4 {[%clk 0:00:41]}  Reb8 {[%clk 0:00:07]} 32. Nxd6 {[%clk 0:00:24]}  Rxd6 {[%clk 0:00:06]} 33. f4 {[%clk 0:00:25]}  Nxc4 {[%clk 0:00:02]} 34. Nxc4 {[%clk 0:00:26]}  Rbb6 {[%clk 0:00:01]} 35. Nxd6 {[%clk 0:00:25]}  Rxd6 {[%clk 0:00:02]} 36. e5 {[%clk 0:00:26]}  Rxd5 {[%clk 0:00:03]} 37. exf6 {[%clk 0:00:26]}  Rd1+ {[%clk 0:00:02]} 38. Kf2 {[%clk 0:00:26]}  Be6 {[%clk 0:00:03]} 39. R5a6 {[%clk 0:00:22]}  Rd2+ {[%clk 0:00:03]} 40. Ke3 {[%clk 0:00:22]} 1-0


[Site "https://www.chess.com"]

[Event "Titled Tuesday Blitz August 10 2021"]
[White "Klimkowski, Jan"]
[Black "Shimanov, Aleksandr"]
[WhiteFideId "21856222"]
[BlackFideId "4198603"]
[WhiteElo "1945"]
[BlackElo "2596"]
[Result "0-1"]
[Round "06"]
[TimeControl "180+1"]
[Date "2021.08.10"]
[WhiteClock "0:00:11"]
[BlackClock "0:00:09"]

1. e4 {[%clk 0:03:00]}  c6 {[%clk 0:02:59]} 2. d4 {[%clk 0:02:58]}  d5 {[%clk 0:03:00]} 3. f3 {[%clk 0:02:59]}  g6 {[%clk 0:02:59]} 4. Nc3 {[%clk 0:02:58]}  Bg7 {[%clk 0:02:58]} 5. Be3 {[%clk 0:02:58]}  Qb6 {[%clk 0:02:58]} 6. Rb1 {[%clk 0:02:58]}  dxe4 {[%clk 0:02:56]} 7. fxe4 {[%clk 0:02:59]}  e5 {[%clk 0:02:57]} 8. Nf3 {[%clk 0:02:49]}  exd4 {[%clk 0:02:57]} 9. Nxd4 {[%clk 0:02:48]}  Qb4 {[%clk 0:02:57]} 10. a3 {[%clk 0:02:46]}  Qe7 {[%clk 0:02:57]} 11. Bc4 {[%clk 0:02:46]}  Nd7 {[%clk 0:02:58]} 12. O-O {[%clk 0:02:45]}  Ne5 {[%clk 0:02:58]} 13. Bb3 {[%clk 0:02:44]}  Nf6 {[%clk 0:02:58]} 14. Bg5 {[%clk 0:02:43]}  h6 {[%clk 0:02:58]} 15. Bh4 {[%clk 0:02:42]}  O-O {[%clk 0:02:56]} 16. Qe2 {[%clk 0:02:40]}  Bg4 {[%clk 0:02:51]} 17. Qf2 {[%clk 0:02:35]}  g5 {[%clk 0:02:50]} 18. Bg3 {[%clk 0:02:34]}  Nh5 {[%clk 0:02:48]} 19. Kh1 {[%clk 0:02:32]}  Rad8 {[%clk 0:02:41]} 20. Rbe1 {[%clk 0:02:30]}  Nxg3+ {[%clk 0:02:39]} 21. hxg3 {[%clk 0:02:28]}  Qc5 {[%clk 0:02:28]} 22. Nf5 {[%clk 0:02:28]}  Qxf2 {[%clk 0:02:28]} 23. Rxf2 {[%clk 0:02:28]}  Rfe8 {[%clk 0:02:21]} 24. Ref1 {[%clk 0:02:21]}  Bxf5 {[%clk 0:02:11]} 25. Rxf5 {[%clk 0:02:22]}  Re7 {[%clk 0:02:10]} 26. Nd1 {[%clk 0:02:21]}  Rd2 {[%clk 0:02:06]} 27. Ne3 {[%clk 0:02:18]}  b5 {[%clk 0:01:52]} 28. R5f2 {[%clk 0:02:10]}  Rxf2 {[%clk 0:01:50]} 29. Rxf2 {[%clk 0:02:11]}  Rd7 {[%clk 0:01:50]} 30. Kg1 {[%clk 0:02:04]}  a5 {[%clk 0:01:44]} 31. a4 {[%clk 0:02:04]}  bxa4 {[%clk 0:01:37]} 32. Bxa4 {[%clk 0:02:00]}  Rd4 {[%clk 0:01:37]} 33. Bb3 {[%clk 0:01:57]}  a4 {[%clk 0:01:35]} 34. Ba2 {[%clk 0:01:51]}  Rxe4 {[%clk 0:01:35]} 35. Nf5 {[%clk 0:01:51]}  Bf8 {[%clk 0:01:13]} 36. Kf1 {[%clk 0:01:38]}  Rb4 {[%clk 0:00:53]} 37. c3 {[%clk 0:01:32]}  Rb7 {[%clk 0:00:48]} 38. Rd2 {[%clk 0:01:32]}  Rd7 {[%clk 0:00:38]} 39. Rxd7 {[%clk 0:01:23]}  Nxd7 {[%clk 0:00:39]} 40. Ke2 {[%clk 0:01:23]}  Nc5 {[%clk 0:00:35]} 41. Nd4 {[%clk 0:01:20]}  g4 {[%clk 0:00:29]} 42. Bb1 {[%clk 0:01:12]}  h5 {[%clk 0:00:26]} 43. Nxc6 {[%clk 0:01:12]}  Bd6 {[%clk 0:00:26]} 44. Kf2 {[%clk 0:01:06]}  Kg7 {[%clk 0:00:26]} 45. Bc2 {[%clk 0:01:04]}  Kf6 {[%clk 0:00:23]} 46. Nb4 {[%clk 0:01:04]}  Kg5 {[%clk 0:00:16]} 47. Nd5 {[%clk 0:01:02]}  f5 {[%clk 0:00:15]} 48. Nb6 {[%clk 0:00:58]}  Ne4+ {[%clk 0:00:07]} 49. Bxe4 {[%clk 0:00:58]}  Bc5+ {[%clk 0:00:07]} 50. Ke2 {[%clk 0:00:56]}  Bxb6 {[%clk 0:00:08]} 51. Bc6 {[%clk 0:00:56]}  Bc7 {[%clk 0:00:08]} 52. Kf2 {[%clk 0:00:56]}  Bb6+ {[%clk 0:00:08]} 53. Ke2 {[%clk 0:00:56]}  Bc7 {[%clk 0:00:08]} 54. Bxa4 {[%clk 0:00:55]}  Bxg3 {[%clk 0:00:09]} 55. Bc6 {[%clk 0:00:55]}  Be5 {[%clk 0:00:08]} 56. Kd3 {[%clk 0:00:54]}  Kf4 {[%clk 0:00:08]} 57. b4 {[%clk 0:00:28]}  Kg3 {[%clk 0:00:07]} 58. c4 {[%clk 0:00:21]}  f4 {[%clk 0:00:08]} 59. Ke2 {[%clk 0:00:20]}  Bc3 {[%clk 0:00:06]} 60. b5 {[%clk 0:00:16]}  Bd4 {[%clk 0:00:07]} 61. Bd5 {[%clk 0:00:15]}  Bc5 {[%clk 0:00:07]} 62. Bc6 {[%clk 0:00:15]}  h4 {[%clk 0:00:07]} 63. Bd5 {[%clk 0:00:15]}  Bb6 {[%clk 0:00:07]} 64. Bc6 {[%clk 0:00:15]}  Ba7 {[%clk 0:00:08]} 65. Bd5 {[%clk 0:00:15]}  Bc5 {[%clk 0:00:09]} 66. Bc6 {[%clk 0:00:15]}  h3 {[%clk 0:00:09]} 67. gxh3 {[%clk 0:00:15]}  f3+ {[%clk 0:00:10]} 68. Kf1 {[%clk 0:00:14]}  gxh3 {[%clk 0:00:10]} 69. b6 {[%clk 0:00:11]}  h2 {[%clk 0:00:09]} 0-1


[Site "https://www.chess.com"]

[Event "Titled Tuesday Blitz August 10 2021"]
[White "Lagno, Kateryna"]
[Black "Le, Tuan Minh"]
[WhiteFideId "14109336"]
[BlackFideId "12401153"]
[WhiteElo "2608"]
[BlackElo "2450"]
[Result "0-1"]
[Round "06"]
[TimeControl "180+1"]
[Date "2021.08.10"]
[WhiteClock "0:00:02"]
[BlackClock "0:00:13"]

1. e4 {[%clk 0:02:55]}  c5 {[%clk 0:02:59]} 2. Nf3 {[%clk 0:02:55]}  Nf6 {[%clk 0:02:59]} 3. e5 {[%clk 0:02:54]}  Nd5 {[%clk 0:03:00]} 4. Nc3 {[%clk 0:02:55]}  e6 {[%clk 0:03:00]} 5. Ne4 {[%clk 0:02:54]}  f5 {[%clk 0:03:00]} 6. exf6 {[%clk 0:02:52]}  Nxf6 {[%clk 0:03:01]} 7. d3 {[%clk 0:02:52]}  d5 {[%clk 0:03:00]} 8. Nxf6+ {[%clk 0:02:50]}  Qxf6 {[%clk 0:03:01]} 9. d4 {[%clk 0:02:33]}  cxd4 {[%clk 0:03:00]} 10. Nxd4 {[%clk 0:02:34]}  Nc6 {[%clk 0:03:00]} 11. Be3 {[%clk 0:02:26]}  Bd6 {[%clk 0:02:40]} 12. Be2 {[%clk 0:02:07]}  O-O {[%clk 0:02:36]} 13. O-O {[%clk 0:02:07]}  Be5 {[%clk 0:02:25]} 14. c3 {[%clk 0:02:05]}  Bd7 {[%clk 0:02:24]} 15. f4 {[%clk 0:02:00]}  Bd6 {[%clk 0:02:16]} 16. Bd3 {[%clk 0:01:53]}  Rae8 {[%clk 0:02:10]} 17. Qd2 {[%clk 0:01:49]}  e5 {[%clk 0:02:07]} 18. Nb5 {[%clk 0:01:07]}  Bb8 {[%clk 0:01:54]} 19. Bc5 {[%clk 0:01:05]}  Rf7 {[%clk 0:01:41]} 20. fxe5 {[%clk 0:01:02]}  Qxe5 {[%clk 0:01:40]} 21. g3 {[%clk 0:00:59]}  Rxf1+ {[%clk 0:01:40]} 22. Rxf1 {[%clk 0:00:58]}  Bh3 {[%clk 0:01:41]} 23. Rd1 {[%clk 0:00:48]}  Qf6 {[%clk 0:01:23]} 24. Bf1 {[%clk 0:00:25]}  Bg4 {[%clk 0:01:23]} 25. Re1 {[%clk 0:00:24]}  Ne5 {[%clk 0:01:23]} 26. Nd4 {[%clk 0:00:20]}  Bf5 {[%clk 0:01:03]} 27. Bg2 {[%clk 0:00:20]}  Be4 {[%clk 0:01:03]} 28. Rf1 {[%clk 0:00:19]}  Qg6 {[%clk 0:01:02]} 29. Nf3 {[%clk 0:00:14]}  Nc4 {[%clk 0:00:59]} 30. Qg5 {[%clk 0:00:12]}  Qxg5 {[%clk 0:00:42]} 31. Nxg5 {[%clk 0:00:13]}  Bxg2 {[%clk 0:00:42]} 32. Kxg2 {[%clk 0:00:14]}  h6 {[%clk 0:00:43]} 33. Nf3 {[%clk 0:00:13]}  Nxb2 {[%clk 0:00:42]} 34. Bd4 {[%clk 0:00:12]}  Nc4 {[%clk 0:00:41]} 35. Kf2 {[%clk 0:00:10]}  b5 {[%clk 0:00:37]} 36. Rd1 {[%clk 0:00:09]}  a6 {[%clk 0:00:36]} 37. Bc5 {[%clk 0:00:09]}  Rd8 {[%clk 0:00:36]} 38. Nd4 {[%clk 0:00:09]}  Rc8 {[%clk 0:00:34]} 39. Nb3 {[%clk 0:00:09]}  Be5 {[%clk 0:00:33]} 40. Rxd5 {[%clk 0:00:08]}  Bxc3 {[%clk 0:00:33]} 41. Rd7 {[%clk 0:00:07]}  Ne5 {[%clk 0:00:30]} 42. Rd5 {[%clk 0:00:04]}  a5 {[%clk 0:00:30]} 43. Bd4 {[%clk 0:00:04]}  Bxd4+ {[%clk 0:00:30]} 44. Nxd4 {[%clk 0:00:04]}  Ng4+ {[%clk 0:00:28]} 45. Kf3 {[%clk 0:00:03]}  Nxh2+ {[%clk 0:00:27]} 46. Kf4 {[%clk 0:00:04]}  Rc4 {[%clk 0:00:25]} 47. Ke4 {[%clk 0:00:03]}  Ra4 {[%clk 0:00:17]} 48. Rxb5 {[%clk 0:00:03]}  Rxa2 {[%clk 0:00:17]} 49. Rb7 {[%clk 0:00:03]}  Ng4 {[%clk 0:00:17]} 50. Nf5 {[%clk 0:00:04]}  Nf6+ {[%clk 0:00:16]} 51. Kf3 {[%clk 0:00:04]}  Ra3+ {[%clk 0:00:16]} 52. Kf4 {[%clk 0:00:03]}  Ra4+ {[%clk 0:00:16]} 53. Kf3 {[%clk 0:00:04]}  Rg4 {[%clk 0:00:15]} 54. Ra7 {[%clk 0:00:03]}  a4 {[%clk 0:00:15]} 55. Ne7+ {[%clk 0:00:02]}  Kh7 {[%clk 0:00:15]} 56. Nd5 {[%clk 0:00:02]}  Rg6 {[%clk 0:00:13]} 57. Nb6 {[%clk 0:00:01]}  Nh5 {[%clk 0:00:12]} 58. Nxa4 {[%clk 0:00:01]}  Rxg3+ {[%clk 0:00:12]} 59. Kf2 {[%clk 0:00:02]}  Ra3 {[%clk 0:00:13]} 0-1


[Site "https://www.chess.com"]

[Event "Titled Tuesday Blitz August 10 2021"]
[White "Lashkin, Jegor"]
[Black "Quparadze, Giga"]
[WhiteFideId "13907808"]
[BlackFideId "13602250"]
[WhiteElo "2293"]
[BlackElo "2658"]
[Result "0-1"]
[Round "06"]
[TimeControl "180+1"]
[Date "2021.08.10"]
[WhiteClock "0:00:13"]
[BlackClock "0:01:37"]

1. d4 {[%clk 0:03:00]}  Nf6 {[%clk 0:02:58]} 2. c4 {[%clk 0:03:00]}  e6 {[%clk 0:02:58]} 3. Nf3 {[%clk 0:02:59]}  b6 {[%clk 0:02:58]} 4. g3 {[%clk 0:02:59]}  Ba6 {[%clk 0:02:58]} 5. b3 {[%clk 0:02:59]}  c6 {[%clk 0:02:57]} 6. Bg2 {[%clk 0:02:54]}  d5 {[%clk 0:02:56]} 7. O-O {[%clk 0:02:44]}  dxc4 {[%clk 0:02:49]} 8. Ne5 {[%clk 0:02:44]}  Bb7 {[%clk 0:02:43]} 9. bxc4 {[%clk 0:02:40]}  Be7 {[%clk 0:02:43]} 10. Bb2 {[%clk 0:02:26]}  O-O {[%clk 0:02:41]} 11. Nd2 {[%clk 0:02:14]}  Qc8 {[%clk 0:02:41]} 12. Qa4 {[%clk 0:02:12]}  c5 {[%clk 0:02:37]} 13. Bxb7 {[%clk 0:01:49]}  Qxb7 {[%clk 0:02:38]} 14. Nb3 {[%clk 0:01:44]}  cxd4 {[%clk 0:02:29]} 15. Nxd4 {[%clk 0:01:44]}  Rc8 {[%clk 0:02:28]} 16. Rfd1 {[%clk 0:01:37]}  Na6 {[%clk 0:02:28]} 17. Nb5 {[%clk 0:01:24]}  Nc5 {[%clk 0:02:25]} 18. Qc2 {[%clk 0:01:24]}  Qe4 {[%clk 0:02:15]} 19. Rac1 {[%clk 0:01:19]}  Qxc2 {[%clk 0:02:08]} 20. Rxc2 {[%clk 0:01:20]}  a6 {[%clk 0:02:09]} 21. Nd4 {[%clk 0:01:17]}  Bf8 {[%clk 0:02:05]} 22. f3 {[%clk 0:01:14]}  Rc7 {[%clk 0:02:03]} 23. Ba1 {[%clk 0:01:09]}  Rac8 {[%clk 0:02:03]} 24. Rb1 {[%clk 0:01:08]}  Ncd7 {[%clk 0:02:03]} 25. Nxd7 {[%clk 0:01:04]}  Nxd7 {[%clk 0:02:04]} 26. Rd2 {[%clk 0:00:51]}  Ne5 {[%clk 0:01:49]} 27. Nxe6 {[%clk 0:00:45]}  Nxc4 {[%clk 0:01:49]} 28. Nxc7 {[%clk 0:00:31]}  Nxd2 {[%clk 0:01:46]} 29. Rc1 {[%clk 0:00:23]}  Bc5+ {[%clk 0:01:45]} 30. Kg2 {[%clk 0:00:24]}  Rxc7 {[%clk 0:01:43]} 31. Rc2 {[%clk 0:00:23]}  Rd7 {[%clk 0:01:41]} 32. Bb2 {[%clk 0:00:17]}  h6 {[%clk 0:01:37]} 33. Bc1 {[%clk 0:00:13]} 0-1


[Site "https://www.chess.com"]

[Event "Titled Tuesday Blitz August 10 2021"]
[White "Maghsoodloo, Parham"]
[Black "Priasmoro, Novendra"]
[WhiteFideId "12539929"]
[BlackFideId "7105029"]
[WhiteElo "2601"]
[BlackElo "2309"]
[Result "1-0"]
[Round "06"]
[TimeControl "180+1"]
[Date "2021.08.10"]
[WhiteClock "0:00:25"]
[BlackClock "0:00:04"]

1. d4 {[%clk 0:03:00]}  Nf6 {[%clk 0:03:00]} 2. c4 {[%clk 0:02:56]}  g6 {[%clk 0:03:00]} 3. f3 {[%clk 0:02:56]}  Bg7 {[%clk 0:02:58]} 4. e4 {[%clk 0:02:56]}  d6 {[%clk 0:02:59]} 5. Ne2 {[%clk 0:02:55]}  O-O {[%clk 0:03:00]} 6. Be3 {[%clk 0:02:55]}  c5 {[%clk 0:02:57]} 7. Qd2 {[%clk 0:02:54]}  cxd4 {[%clk 0:02:57]} 8. Nxd4 {[%clk 0:02:54]}  Nc6 {[%clk 0:02:58]} 9. Nc3 {[%clk 0:02:54]}  Bd7 {[%clk 0:02:58]} 10. Be2 {[%clk 0:02:55]}  a5 {[%clk 0:02:49]} 11. O-O {[%clk 0:02:54]}  Nxd4 {[%clk 0:02:48]} 12. Bxd4 {[%clk 0:02:54]}  Bc6 {[%clk 0:02:48]} 13. Kh1 {[%clk 0:02:40]}  Nd7 {[%clk 0:02:49]} 14. Rfd1 {[%clk 0:02:38]}  Bxd4 {[%clk 0:02:48]} 15. Qxd4 {[%clk 0:02:38]}  Qb6 {[%clk 0:02:48]} 16. Qd2 {[%clk 0:02:35]}  Nc5 {[%clk 0:02:49]} 17. Rab1 {[%clk 0:02:34]}  Rfc8 {[%clk 0:02:48]} 18. Qg5 {[%clk 0:02:24]}  f6 {[%clk 0:02:34]} 19. Qh6 {[%clk 0:02:24]}  Ne6 {[%clk 0:02:31]} 20. Nd5 {[%clk 0:02:16]}  Bxd5 {[%clk 0:02:29]} 21. exd5 {[%clk 0:02:17]}  Ng5 {[%clk 0:02:20]} 22. Qh4 {[%clk 0:02:01]}  Rc7 {[%clk 0:02:11]} 23. Re1 {[%clk 0:01:57]}  Nf7 {[%clk 0:02:02]} 24. f4 {[%clk 0:01:54]}  Qd4 {[%clk 0:02:01]} 25. Qg3 {[%clk 0:01:50]}  Qd2 {[%clk 0:01:49]} 26. Bd3 {[%clk 0:01:45]}  Kg7 {[%clk 0:01:38]} 27. Re2 {[%clk 0:01:42]}  Qb4 {[%clk 0:01:37]} 28. Rbe1 {[%clk 0:01:43]}  Re8 {[%clk 0:01:37]} 29. h4 {[%clk 0:01:42]}  Kh8 {[%clk 0:01:23]} 30. Qf3 {[%clk 0:01:36]}  Nh6 {[%clk 0:01:17]} 31. g4 {[%clk 0:01:29]}  b5 {[%clk 0:01:13]} 32. cxb5 {[%clk 0:01:26]}  g5 {[%clk 0:01:02]} 33. hxg5 {[%clk 0:01:23]}  fxg5 {[%clk 0:01:03]} 34. Re6 {[%clk 0:01:11]}  Rf8 {[%clk 0:00:49]} 35. Qh3 {[%clk 0:01:10]}  Rf6 {[%clk 0:00:39]} 36. Rf1 {[%clk 0:01:01]}  Qd4 {[%clk 0:00:31]} 37. Rxf6 {[%clk 0:00:48]}  Qxf6 {[%clk 0:00:20]} 38. Qh5 {[%clk 0:00:26]}  Ng8 {[%clk 0:00:04]} 39. Qxh7# {[%clk 0:00:25]} 1-0


[Site "https://www.chess.com"]

[Event "Titled Tuesday Blitz August 10 2021"]
[White "Nagy, Gabor"]
[Black "Quintiliano Pinto, Renato R."]
[WhiteFideId "737119"]
[BlackFideId "2117568"]
[WhiteElo "2562"]
[BlackElo "2439"]
[Result "1/2-1/2"]
[Round "06"]
[TimeControl "180+1"]
[Date "2021.08.10"]
[WhiteClock "0:01:59"]
[BlackClock "0:00:57"]

1. c4 {[%clk 0:03:00]}  e6 {[%clk 0:02:57]} 2. g3 {[%clk 0:02:59]}  Nf6 {[%clk 0:02:57]} 3. Bg2 {[%clk 0:03:00]}  d5 {[%clk 0:02:57]} 4. d4 {[%clk 0:02:58]}  Be7 {[%clk 0:02:56]} 5. Nf3 {[%clk 0:02:58]}  O-O {[%clk 0:02:57]} 6. Qc2 {[%clk 0:02:59]}  c5 {[%clk 0:02:56]} 7. O-O {[%clk 0:02:57]}  Nc6 {[%clk 0:02:20]} 8. dxc5 {[%clk 0:02:52]}  d4 {[%clk 0:02:16]} 9. a3 {[%clk 0:02:39]}  a5 {[%clk 0:02:13]} 10. Bg5 {[%clk 0:02:38]}  Nd7 {[%clk 0:02:05]} 11. Bxe7 {[%clk 0:02:34]}  Qxe7 {[%clk 0:02:06]} 12. Nbd2 {[%clk 0:02:31]}  Nxc5 {[%clk 0:02:01]} 13. b4 {[%clk 0:02:13]}  axb4 {[%clk 0:01:58]} 14. axb4 {[%clk 0:02:14]}  Rxa1 {[%clk 0:01:58]} 15. Rxa1 {[%clk 0:02:13]}  Nxb4 {[%clk 0:01:57]} 16. Qb2 {[%clk 0:02:13]}  Nc6 {[%clk 0:01:50]} 17. Nxd4 {[%clk 0:02:13]}  Nxd4 {[%clk 0:01:25]} 18. Qxd4 {[%clk 0:02:14]}  Rd8 {[%clk 0:01:23]} 19. Qc3 {[%clk 0:02:12]}  Rxd2 {[%clk 0:00:57]} 20. Qxd2 {[%clk 0:02:13]}  Nb3 {[%clk 0:00:57]} 21. Ra8 {[%clk 0:02:05]}  Nxd2 {[%clk 0:00:57]} 22. Rxc8+ {[%clk 0:02:04]}  Qf8 {[%clk 0:00:58]} 23. Rxf8+ {[%clk 0:02:01]}  Kxf8 {[%clk 0:00:59]} 24. c5 {[%clk 0:02:01]}  Nb3 {[%clk 0:00:57]} 25. Bxb7 {[%clk 0:01:58]}  Nxc5 {[%clk 0:00:57]} 26. Bf3 {[%clk 0:01:59]} 1/2-1/2


[Site "https://www.chess.com"]